fUST/lending_fUST_20240802
["ID","MTS","AMOUNT","RATE_DAILY","PERIOD"]
[333865089,1722579074434,-500.0,0.00016986,2]
[333865090,1722579074444,-765.76,0.00016986,2]
[333865091,1722579074453,-566.91,0.00016986,2]
[333865092,1722579074463,-592.23,0.00016986,2]
[333865093,1722579074472,-500.0,0.00016986,2]
[333865094,1722579074482,-503.1,0.00016986,2]
[333865095,1722579074493,-2064.69,0.00016986,2]
[333865096,1722579074503,-500.0,0.00016986,2]
[333865097,1722579074514,-978.62,0.00016986,2]
[333865098,1722579074524,-500.0,0.00016986,2]
[333865099,1722579074535,-2504.91,0.00016986,2]
[333865100,1722579074545,-1083.36,0.00016986,2]
[333865101,1722579074559,-658.96,0.00016986,2]
[333865102,1722579074569,-500.0,0.00016986,2]
[333865103,1722579074579,-737.68,0.00016986,2]
[333865104,1722579074589,-804.68,0.00016986,2]
[333865105,1722579074600,-500.0,0.00016986,2]
[333865106,1722579074609,-823.41,0.00016986,2]
[333865107,1722579074619,-1365.74,0.00016986,2]
[333865108,1722579074630,-500.0,0.00016986,2]
[333865109,1722579074640,-689.75,0.00016986,2]
[333865110,1722579074650,-987.68,0.00016986,2]
[333865111,1722579074662,-500.0,0.00016986,2]
[333865112,1722579074673,-550.17,0.00016986,2]
[333865113,1722579074692,-1094.99,0.00016986,2]
[333865114,1722579074708,-518.89,0.00016986,2]
[333865115,1722579074718,-1285.67,0.00016986,2]
[333865116,1722579074728,-500.0,0.00016986,2]
[333865117,1722579074738,-596.37,0.00016986,2]
[333865118,1722579074747,-1495.23,0.00016986,2]
[333865119,1722579074757,-1907.27,0.00016986,2]
[333865120,1722579074767,-2296.25,0.00016986,2]
[333865121,1722579074776,-2383.19,0.00016986,2]
[333865122,1722579074786,-2109.37,0.00016986,2]
[333865123,1722579074796,-1239.38,0.00016986,2]
[333865124,1722579074806,-500.0,0.00016986,2]
[333865125,1722579074816,-500.0,0.00016986,2]
[333865126,1722579074826,-500.0,0.00016986,2]
[333865127,1722579074836,-557.42,0.00016986,2]
[333865128,1722579074846,-8928.74,0.00016986,2]
[333865129,1722579074855,-3974.3,0.00016986,2]
[333865130,1722579074865,-677.33,0.00016986,2]
[333865131,1722579074875,-1546.82,0.00016986,2]
[333865132,1722579074885,-1043.82,0.00016986,2]
[333865133,1722579074895,-500.0,0.00016986,2]
[333865134,1722579074904,-545.96,0.00016986,2]
[333865135,1722579074914,-500.0,0.00016986,2]
[333865136,1722579074924,-500.0,0.00016986,2]
[333865137,1722579074934,-1153.47,0.00016986,2]
[333865138,1722579074945,-749.82,0.00016986,2]
[333865139,1722579074954,-5500.2,0.00016986,2]
[333865140,1722579074964,-560.79,0.00016986,2]
[333865141,1722579074974,-1545.14,0.00016986,2]
[333865142,1722579074984,-760.37,0.00016986,2]
[333865143,1722579074993,-500.0,0.00016986,2]
[333865144,1722579075003,-500.0,0.00016986,2]
[333865145,1722579075012,-500.0,0.00016986,2]
[333865146,1722579075022,-919.48,0.00016986,2]
[333865147,1722579075032,-703.72,0.00016986,2]
[333865148,1722579075042,-500.0,0.00016986,2]
[333865149,1722579075051,-516.88,0.00016986,2]
[333865150,1722579075061,-6346.79,0.00016986,2]
[333865151,1722579075071,-795.32,0.00016986,2]
[333865152,1722579075081,-500.0,0.00016986,2]
[333865153,1722579075091,-2490.95,0.00016986,2]
[333865154,1722579075101,-1047.04,0.00016986,2]
[333865155,1722579075111,-500.0,0.00016986,2]
[333865156,1722579075121,-688.64,0.00016986,2]
[333865157,1722579075130,-4027.37,0.00016986,2]
[333865158,1722579075140,-769.86,0.00016986,2]
[333865159,1722579075150,-1034.52,0.00016986,2]
[333865160,1722579075162,-746.99,0.00016986,2]
[333865161,1722579075173,-677.81,0.00016986,2]
[333865162,1722579075183,-817.67,0.00016986,2]
[333865163,1722579075204,-1121.06,0.00016986,2]
[333865164,1722579075216,-746.97,0.00016986,2]
[333865165,1722579075232,-1338.14,0.00016986,2]
[333865166,1722579075243,-1468.19,0.00016986,2]
[333865167,1722579075253,-1000.0,0.00017,2]
[333865168,1722579075262,-154.79103211,0.00017019,2]
[333865169,1722579075272,-5676.25603918,0.00017019,7]
[333865170,1722579075282,-354.691497,0.00017048,2]
[333865171,1722579075294,-414.861055,0.00017048,2]
[333865172,1722579075304,-1555.9326037,0.00017221,2]
[333865173,1722579075315,-974.01,0.0001726,2]
[333865174,1722579075326,-500.0,0.0001726,2]
[333865175,1722579075335,-500.0,0.0001726,2]
[333865176,1722579075346,-500.0,0.0001726,2]
[333865177,1722579075357,-641.78,0.0001726,2]
[333865178,1722579075367,-723.5,0.0001726,2]
[333865179,1722579075377,-1075.74,0.0001726,2]
[333865180,1722579075387,-947.16,0.0001726,2]
[333865181,1722579075397,-772.41,0.0001726,2]
[333865182,1722579075410,-902.37,0.0001726,2]
[333865183,1722579075420,-500.0,0.0001726,2]
[333865184,1722579075429,-735.93,0.0001726,2]
[333865185,1722579075446,-500.0,0.0001726,2]
[333865186,1722579075457,-765.76,0.0001726,2]
[333865187,1722579075467,-566.91,0.0001726,2]
[333865188,1722579075476,-592.23,0.0001726,2]
[333865189,1722579075485,-500.0,0.0001726,2]
[333865190,1722579075495,-503.1,0.0001726,2]
[333865191,1722579075505,-2064.69,0.0001726,2]
[333865192,1722579075514,-500.0,0.0001726,2]
[333865193,1722579075524,-978.62,0.0001726,2]
[333865194,1722579075534,-500.0,0.0001726,2]
[333865195,1722579075544,-2504.91,0.0001726,2]
[333865196,1722579075556,-1083.36,0.0001726,2]
[333865197,1722579075566,-658.96,0.0001726,2]
[333865198,1722579075576,-500.0,0.0001726,2]
[333865199,1722579075586,-737.68,0.0001726,2]
[333865200,1722579075595,-804.68,0.0001726,2]
[333865201,1722579075606,-500.0,0.0001726,2]
[333865202,1722579075616,-823.41,0.0001726,2]
[333865203,1722579075627,-1365.74,0.0001726,2]
[333865204,1722579075636,-500.0,0.0001726,2]
[333865205,1722579075646,-689.75,0.0001726,2]
[333865206,1722579075656,-987.68,0.0001726,2]
[333865207,1722579075666,-500.0,0.0001726,2]
[333865208,1722579075675,-550.17,0.0001726,2]
[333865209,1722579075684,-1094.99,0.0001726,2]
[333865210,1722579075706,-518.89,0.0001726,2]
[333865211,1722579075716,-1285.67,0.0001726,2]
[333865212,1722579075728,-500.0,0.0001726,2]
[333865213,1722579075738,-596.37,0.0001726,2]
[333865214,1722579075749,-1495.23,0.0001726,2]
[333865215,1722579075760,-1907.27,0.0001726,2]
[333865216,1722579075770,-2296.25,0.0001726,2]
[333865217,1722579075780,-2383.19,0.0001726,2]
[333865218,1722579075790,-2109.37,0.0001726,2]
[333865219,1722579075799,-1239.38,0.0001726,2]
[333865220,1722579075809,-500.0,0.0001726,2]
[333865221,1722579075819,-500.0,0.0001726,2]
[333865222,1722579075829,-197.86804541,0.0001726,2]
[333865223,1722579075839,-557.42,0.0001726,2]
[333865224,1722579075849,-8928.74,0.0001726,2]
[333865225,1722579075859,-3974.3,0.0001726,2]
[333865226,1722579075869,-677.33,0.0001726,2]
[333865227,1722579075878,-1546.82,0.0001726,2]
[333865228,1722579075888,-1043.82,0.0001726,2]
[333865229,1722579075898,-500.0,0.0001726,2]
[333865230,1722579075907,-545.96,0.0001726,2]
[333865231,1722579075916,-500.0,0.0001726,2]
[333865232,1722579075926,-500.0,0.0001726,2]
[333865233,1722579075936,-1153.47,0.0001726,2]
[333865234,1722579075957,-749.82,0.0001726,2]
[333865235,1722579075967,-5500.2,0.0001726,2]
[333865236,1722579075977,-560.79,0.0001726,2]
[333865237,1722579075987,-1545.14,0.0001726,2]
[333865238,1722579075997,-760.37,0.0001726,2]
[333865239,1722579076006,-500.0,0.0001726,2]
[333865240,1722579076016,-500.0,0.0001726,2]
[333865241,1722579076026,-372.54412226,0.0001726,2]
[333865242,1722579076036,-919.48,0.0001726,2]
[333865243,1722579076046,-703.72,0.0001726,2]
[333865244,1722579076055,-500.0,0.0001726,2]
[333865245,1722579076065,-516.88,0.0001726,2]
[333865246,1722579076075,-6346.79,0.0001726,2]
[333865247,1722579076084,-795.32,0.0001726,2]
[333865248,1722579076094,-500.0,0.0001726,2]
[333865249,1722579076103,-2490.95,0.0001726,2]
[333865250,1722579076114,-1047.04,0.0001726,2]
[333865251,1722579076123,-451.48022114,0.0001726,2]
[333865252,1722579076132,-688.64,0.0001726,2]
[333865253,1722579076142,-4027.37,0.0001726,2]
[333865254,1722579076151,-769.86,0.0001726,2]
[333865255,1722579076161,-1034.52,0.0001726,2]
[333865256,1722579076170,-746.99,0.0001726,2]
[333865257,1722579076180,-677.81,0.0001726,2]
[333865258,1722579076201,-817.67,0.0001726,2]
[333865259,1722579076211,-1121.06,0.0001726,2]
[333865260,1722579076220,-746.97,0.0001726,2]
[333865261,1722579076230,-1338.14,0.0001726,2]
[333865262,1722579076239,-1468.19,0.0001726,2]
[333865263,1722579076248,-354.691497,0.00017261,2]
[333865264,1722579076258,-414.861055,0.00017261,2]
[333865265,1722579076267,-600.0,0.0001742,2]
[333865266,1722579076276,-246.0,0.00017449,2]
[333865267,1722579076286,-354.691497,0.00017474,2]
[333865268,1722579076295,-414.861055,0.00017474,2]
[333865269,1722579076304,-2000.0,0.00017498,2]
[333865270,1722579076313,-1000.0,0.000175,2]
[333865271,1722579076322,-2000.0,0.00017507,2]
[333865272,1722579076332,-2000.0,0.00017515,2]
[333865273,1722579076340,-2000.0,0.00017524,2]
[333865274,1722579076349,-2000.0,0.00017533,2]
[333865275,1722579076358,-1153.98936066,0.00017533,2]
[333865276,1722579076367,-974.01,0.00017534,2]
[333865277,1722579076376,-198.73403888,0.00017534,2]
[333865278,1722579076386,-500.0,0.00017534,2]
[333865279,1722579076395,-500.0,0.00017534,2]
[333865280,1722579076405,-641.78,0.00017534,2]
[333865281,1722579076415,-723.5,0.00017534,2]
[333865282,1722579076424,-1075.74,0.00017534,2]
[333865283,1722579076434,-947.16,0.00017534,2]
[333865284,1722579076456,-772.41,0.00017534,2]
[333865285,1722579076466,-902.37,0.00017534,2]
[333865286,1722579076475,-735.93,0.00017534,2]
[333865287,1722579076485,-500.0,0.00017534,2]
[333865288,1722579076494,-765.76,0.00017534,2]
[333865289,1722579076504,-566.91,0.00017534,2]
[333865290,1722579076513,-592.23,0.00017534,2]
[333865291,1722579076523,-500.0,0.00017534,2]
[333865292,1722579076532,-503.1,0.00017534,2]
[333865293,1722579076543,-2064.69,0.00017534,2]
[333865294,1722579076555,-500.0,0.00017534,2]
[333865295,1722579076564,-978.62,0.00017534,2]
[333865296,1722579076573,-635.66499867,0.00017534,2]
[333865297,1722579076583,-2504.91,0.00017534,2]
[333865298,1722579076592,-1083.36,0.00017534,2]
[333865299,1722579076602,-658.96,0.00017534,2]
[333865300,1722579076612,-500.0,0.00017534,2]
[333865301,1722579076622,-737.68,0.00017534,2]
[333865302,1722579076633,-804.68,0.00017534,2]
[333865303,1722579076643,-500.0,0.00017534,2]
[333865304,1722579076652,-823.41,0.00017534,2]
[333865305,1722579076662,-1365.74,0.00017534,2]
[333865306,1722579076671,-500.0,0.00017534,2]
[333865307,1722579076681,-689.75,0.00017534,2]
[333865308,1722579076702,-987.68,0.00017534,2]
[333865309,1722579076712,-500.0,0.00017534,2]
[333865310,1722579076723,-550.17,0.00017534,2]
[333865311,1722579076733,-1094.99,0.00017534,2]
[333865312,1722579076743,-518.89,0.00017534,2]
[333865313,1722579076753,-1285.67,0.00017534,2]
[333865314,1722579076763,-235.14434683,0.00017534,2]
[333865315,1722579076871,-596.37,0.00017534,2]
[333865316,1722579076882,-1495.23,0.00017534,2]
[333865317,1722579076893,-1907.27,0.00017534,2]
[333865318,1722579076903,-2296.25,0.00017534,2]
[333865319,1722579076913,-2383.19,0.00017534,2]
[333865320,1722579076923,-2109.37,0.00017534,2]
[333865321,1722579076933,-1239.38,0.00017534,2]
[333865322,1722579076956,-284.55005202,0.00017534,2]
[333865323,1722579076967,-500.0,0.00017534,2]
[333865324,1722579076977,-557.42,0.00017534,2]
[333865325,1722579076988,-8928.74,0.00017534,2]
[333865326,1722579076998,-3974.3,0.00017534,2]
[333865327,1722579077008,-677.33,0.00017534,2]
[333865328,1722579077018,-1546.82,0.00017534,2]
[333865329,1722579077028,-1043.82,0.00017534,2]
[333865330,1722579077038,-293.35532874,0.00017534,2]
[333865331,1722579077048,-545.96,0.00017534,2]
[333865332,1722579077057,-500.0,0.00017534,2]
[333865333,1722579077066,-500.0,0.00017534,2]
[333865334,1722579077076,-1153.47,0.00017534,2]
[333865335,1722579077085,-749.82,0.00017534,2]
[333865336,1722579077094,-5500.2,0.00017534,2]
[333865337,1722579077104,-560.79,0.00017534,2]
[333865338,1722579077114,-1545.14,0.00017534,2]
[333865339,1722579077124,-760.37,0.00017534,2]
[333865340,1722579077133,-500.0,0.00017534,2]
[333865341,1722579077142,-500.0,0.00017534,2]
[333865342,1722579077152,-919.48,0.00017534,2]
[333865343,1722579077162,-703.72,0.00017534,2]
[333865344,1722579077171,-500.0,0.00017534,2]
[333865345,1722579077181,-516.88,0.00017534,2]
[333865346,1722579077191,-6346.79,0.00017534,2]
[333865347,1722579077200,-795.32,0.00017534,2]
[333865348,1722579077210,-500.0,0.00017534,2]
[333865349,1722579077219,-2490.95,0.00017534,2]
[333865350,1722579077228,-1047.04,0.00017534,2]
[333865351,1722579077237,-688.64,0.00017534,2]
[333865352,1722579077247,-4027.37,0.00017534,2]
[333865353,1722579077256,-769.86,0.00017534,2]
[333865354,1722579077266,-1034.52,0.00017534,2]
[333865355,1722579077276,-746.99,0.00017534,2]
[333865356,1722579077285,-677.81,0.00017534,2]
[333865357,1722579077295,-817.67,0.00017534,2]
[333865358,1722579077304,-1121.06,0.00017534,2]
[333865359,1722579077314,-746.97,0.00017534,2]
[333865360,1722579077324,-1338.14,0.00017534,2]
[333865361,1722579077334,-1468.19,0.00017534,2]
[333865362,1722579077343,-620.0,0.00017614,2]
[333865363,1722579077352,-160.0,0.00017616,3]
[333865364,1722579077361,-354.691497,0.00017687,2]
[333865365,1722579077371,-414.861055,0.00017687,2]
[333865366,1722579077379,-974.01,0.00017808,2]
[333865367,1722579077389,-500.0,0.00017808,2]
[333865368,1722579077398,-312.92337155,0.00017808,2]
[333865369,1722579077408,-641.78,0.00017808,2]
[333865370,1722579077418,-723.5,0.00017808,2]
[333865371,1722579077429,-1075.74,0.00017808,2]
[333865372,1722579077444,-947.16,0.00017808,2]
[333865373,1722579077455,-772.41,0.00017808,2]
[333865374,1722579077465,-902.37,0.00017808,2]
[333865375,1722579077479,-735.93,0.00017808,2]
[333865376,1722579077490,-500.0,0.00017808,2]
[333865377,1722579077501,-765.76,0.00017808,2]
[333865378,1722579077510,-566.91,0.00017808,2]
[333865379,1722579077520,-592.23,0.00017808,2]
[333865380,1722579077531,-429.0719948,0.00017808,2]
[333865381,1722579077540,-503.1,0.00017808,2]
[333865382,1722579077553,-2064.69,0.00017808,2]
[333865383,1722579077564,-500.0,0.00017808,2]
[333865384,1722579077574,-978.62,0.00017808,2]
[333865385,1722579077586,-2504.91,0.00017808,2]
[333865386,1722579077598,-1083.36,0.00017808,2]
[333865387,1722579077610,-658.96,0.00017808,2]
[333865388,1722579077620,-500.0,0.00017808,2]
[333865389,1722579077631,-737.68,0.00017808,2]
[333865390,1722579077640,-804.68,0.00017808,2]
[333865391,1722579077649,-502.0145079,0.00017808,2]
[333865392,1722579077659,-823.41,0.00017808,2]
[333865393,1722579077668,-1365.74,0.00017808,2]
[333865394,1722579077677,-500.0,0.00017808,2]
[333865395,1722579077689,-689.75,0.00017808,2]
[333865396,1722579077705,-987.68,0.00017808,2]
[333865397,1722579077714,-500.0,0.00017808,2]
[333865398,1722579077724,-550.17,0.00017808,2]
[333865399,1722579077733,-1094.99,0.00017808,2]
[333865400,1722579077742,-518.89,0.00017808,2]
[333865401,1722579077751,-1285.67,0.00017808,2]
[333865402,1722579077761,-596.37,0.00017808,2]
[333865403,1722579077770,-1495.23,0.00017808,2]
[333865404,1722579077779,-1907.27,0.00017808,2]
[333865405,1722579077789,-2296.25,0.00017808,2]
[333865406,1722579077798,-2383.19,0.00017808,2]
[333865407,1722579077807,-2109.37,0.00017808,2]
[333865408,1722579077817,-1239.38,0.00017808,2]
[333865409,1722579077827,-500.0,0.00017808,2]
[333865410,1722579077837,-557.42,0.00017808,2]
[333865411,1722579077847,-8928.74,0.00017808,2]
[333865412,1722579077856,-3974.3,0.00017808,2]
[333865413,1722579077866,-677.33,0.00017808,2]
[333865414,1722579077875,-1546.82,0.00017808,2]
[333865415,1722579077885,-1043.82,0.00017808,2]
[333865416,1722579077896,-545.96,0.00017808,2]
[333865417,1722579077906,-500.0,0.00017808,2]
[333865418,1722579077916,-500.0,0.00017808,2]
[333865419,1722579077926,-1153.47,0.00017808,2]
[333865420,1722579077938,-749.82,0.00017808,2]
[333865421,1722579077949,-5500.2,0.00017808,2]
[333865422,1722579077959,-560.79,0.00017808,2]
[333865423,1722579077969,-1545.14,0.00017808,2]
[333865424,1722579077979,-760.37,0.00017808,2]
[333865425,1722579077990,-500.0,0.00017808,2]
[333865426,1722579078001,-919.48,0.00017808,2]
[333865427,1722579078011,-500.0,0.00017808,2]
[333865428,1722579078021,-703.72,0.00017808,2]
[333865429,1722579078031,-500.0,0.00017808,2]
[333865430,1722579078044,-516.88,0.00017808,2]
[333865431,1722579078054,-6346.79,0.00017808,2]
[333865432,1722579078063,-795.32,0.00017808,2]
[333865433,1722579078073,-500.0,0.00017808,2]
[333865434,1722579078083,-2490.95,0.00017808,2]
[333865435,1722579078093,-1047.04,0.00017808,2]
[333865436,1722579078102,-688.64,0.00017808,2]
[333865437,1722579078113,-4027.37,0.00017808,2]
[333865438,1722579078122,-769.86,0.00017808,2]
[333865439,1722579078132,-1034.52,0.00017808,2]
[333865440,1722579078142,-746.99,0.00017808,2]
[333865441,1722579078153,-677.81,0.00017808,2]
[333865442,1722579078162,-817.67,0.00017808,2]
[333865443,1722579078172,-1121.06,0.00017808,2]
[333865444,1722579078182,-746.97,0.00017808,2]
[333865445,1722579078193,-1338.14,0.00017808,2]
[333865446,1722579078203,-1468.19,0.00017808,2]
[333865447,1722579078212,-160.0,0.00017831,4]
[333865448,1722579078222,-2219.16756407,0.000179,2]
[333865449,1722579078233,-2219.16756407,0.000179,2]
[333865450,1722579078243,-2219.16756407,0.000179,2]
[333865451,1722579078252,-2219.16756407,0.000179,2]
[333865452,1722579078262,-354.691497,0.00017901,2]
[333865453,1722579078272,-414.861055,0.00017901,2]
[333865454,1722579078281,-246.0,0.00017955,2]
[333865455,1722579078291,-1043.1623353,0.00018,2]
[333865456,1722579078301,-205.46315813,0.00018,2]
[333865457,1722579078312,-182.5,0.00018,2]
[333865458,1722579078321,-1000.0,0.00018,2]
[333865459,1722579078331,-3295.5748542,0.00018041,2]
[333865460,1722579078340,-160.0,0.00018045,5]
[333865461,1722579078349,-974.01,0.00018082,2]
[333865462,1722579078359,-500.0,0.00018082,2]
[333865463,1722579078368,-641.78,0.00018082,2]
[333865464,1722579078377,-723.5,0.00018082,2]
[333865465,1722579078386,-1075.74,0.00018082,2]
[333865466,1722579078396,-947.16,0.00018082,2]
[333865467,1722579078406,-772.41,0.00018082,2]
[333865468,1722579078416,-902.37,0.00018082,2]
[333865469,1722579078427,-735.93,0.00018082,2]
[333865470,1722579078437,-500.0,0.00018082,2]
[333865471,1722579078454,-765.76,0.00018082,2]
[333865472,1722579078464,-566.91,0.00018082,2]
[333865473,1722579078474,-592.23,0.00018082,2]
[333865474,1722579078483,-503.1,0.00018082,2]
[333865475,1722579078493,-2064.69,0.00018082,2]
[333865476,1722579078503,-500.0,0.00018082,2]
[333865477,1722579078513,-978.62,0.00018082,2]
[333865478,1722579078523,-2504.91,0.00018082,2]
[333865479,1722579078533,-1083.36,0.00018082,2]
[333865480,1722579078542,-658.96,0.00018082,2]
[333865481,1722579078553,-500.0,0.00018082,2]
[333865482,1722579078564,-737.68,0.00018082,2]
[333865483,1722579078574,-804.68,0.00018082,2]
[333865484,1722579078583,-823.41,0.00018082,2]
[333865485,1722579078593,-1365.74,0.00018082,2]
[333865486,1722579078603,-500.0,0.00018082,2]
[333865487,1722579078613,-689.75,0.00018082,2]
[333865488,1722579078622,-987.68,0.00018082,2]
[333865489,1722579078633,-500.0,0.00018082,2]
[333865490,1722579078642,-550.17,0.00018082,2]
[333865491,1722579078652,-1094.99,0.00018082,2]
[333865492,1722579078661,-518.89,0.00018082,2]
[333865493,1722579078672,-1285.67,0.00018082,2]
[333865494,1722579078681,-596.37,0.00018082,2]
[333865495,1722579078694,-1495.23,0.00018082,2]
[333865496,1722579078704,-1907.27,0.00018082,2]
[333865497,1722579078715,-2296.25,0.00018082,2]
[333865498,1722579078725,-2383.19,0.00018082,2]
[333865499,1722579078734,-2109.37,0.00018082,2]
[333865500,1722579078744,-1239.38,0.00018082,2]
[333865501,1722579078753,-500.0,0.00018082,2]
[333865502,1722579078762,-557.42,0.00018082,2]
[333865503,1722579078772,-8928.74,0.00018082,2]
[333865504,1722579078781,-3974.3,0.00018082,2]
[333865505,1722579078792,-677.33,0.00018082,2]
[333865506,1722579078803,-1546.82,0.00018082,2]
[333865507,1722579078812,-1043.82,0.00018082,2]
[333865508,1722579078823,-545.96,0.00018082,2]
[333865509,1722579078833,-500.0,0.00018082,2]
[333865510,1722579078843,-500.0,0.00018082,2]
[333865511,1722579078852,-1153.47,0.00018082,2]
[333865512,1722579078862,-749.82,0.00018082,2]
[333865513,1722579078872,-5500.2,0.00018082,2]
[333865514,1722579078881,-560.79,0.00018082,2]
[333865515,1722579078891,-1545.14,0.00018082,2]
[333865516,1722579078901,-760.37,0.00018082,2]
[333865517,1722579078911,-500.0,0.00018082,2]
[333865518,1722579078920,-919.48,0.00018082,2]
[333865519,1722579078930,-500.0,0.00018082,2]
[333865520,1722579078942,-703.72,0.00018082,2]
[333865521,1722579078952,-500.0,0.00018082,2]
[333865522,1722579078962,-516.88,0.00018082,2]
[333865523,1722579078971,-6346.79,0.00018082,2]
[333865524,1722579078981,-795.32,0.00018082,2]
[333865525,1722579078992,-500.0,0.00018082,2]
[333865526,1722579079001,-2490.95,0.00018082,2]
[333865527,1722579079012,-1047.04,0.00018082,2]
[333865528,1722579079021,-688.64,0.00018082,2]
[333865529,1722579079033,-4027.37,0.00018082,2]
[333865530,1722579079043,-769.86,0.00018082,2]
[333865531,1722579079053,-1034.52,0.00018082,2]
[333865532,1722579079063,-746.99,0.00018082,2]
[333865533,1722579079073,-677.81,0.00018082,2]
[333865534,1722579079082,-817.67,0.00018082,2]
[333865535,1722579079092,-1121.06,0.00018082,2]
[333865536,1722579079102,-746.97,0.00018082,2]
[333865537,1722579079112,-1338.14,0.00018082,2]
[333865538,1722579079122,-1468.19,0.00018082,2]
[333865539,1722579079131,-160.0,0.00018259,6]
[333865540,1722579079141,-974.01,0.00018356,2]
[333865541,1722579079151,-500.0,0.00018356,2]
[333865542,1722579079161,-641.78,0.00018356,2]
[333865543,1722579079170,-723.5,0.00018356,2]
[333865544,1722579079180,-1075.74,0.00018356,2]
[333865545,1722579079191,-947.16,0.00018356,2]
[333865546,1722579079201,-772.41,0.00018356,2]
[333865547,1722579079210,-902.37,0.00018356,2]
[333865548,1722579079220,-735.93,0.00018356,2]
[333865549,1722579079315,-500.0,0.00018356,2]
[333865550,1722579079326,-765.76,0.00018356,2]
[333865551,1722579079336,-566.91,0.00018356,2]
[333865552,1722579079345,-592.23,0.00018356,2]
[333865553,1722579079355,-503.1,0.00018356,2]
[333865554,1722579079364,-2064.69,0.00018356,2]
[333865555,1722579079374,-500.0,0.00018356,2]
[333865556,1722579079383,-978.62,0.00018356,2]
[333865557,1722579079392,-2504.91,0.00018356,2]
[333865558,1722579079402,-1083.36,0.00018356,2]
[333865559,1722579079411,-658.96,0.00018356,2]
[333865560,1722579079420,-500.0,0.00018356,2]
[333865561,1722579079429,-737.68,0.00018356,2]
[333865562,1722579079442,-804.68,0.00018356,2]
[333865563,1722579079451,-823.41,0.00018356,2]
[333865564,1722579079461,-1365.74,0.00018356,2]
[333865565,1722579079471,-646.01972997,0.00018356,2]
[333865566,1722579079480,-689.75,0.00018356,2]
[333865567,1722579079490,-987.68,0.00018356,2]
[333865568,1722579079499,-500.0,0.00018356,2]
[333865569,1722579079509,-550.17,0.00018356,2]
[333865570,1722579079519,-1094.99,0.00018356,2]
[333865571,1722579079529,-518.89,0.00018356,2]
[333865572,1722579079539,-1285.67,0.00018356,2]
[333865573,1722579079548,-596.37,0.00018356,2]
[333865574,1722579079563,-1495.23,0.00018356,2]
[333865575,1722579079572,-1907.27,0.00018356,2]
[333865576,1722579079582,-2296.25,0.00018356,2]
[333865577,1722579079593,-2383.19,0.00018356,2]
[333865578,1722579079602,-2109.37,0.00018356,2]
[333865579,1722579079612,-1239.38,0.00018356,2]
[333865580,1722579079621,-500.0,0.00018356,2]
[333865581,1722579079631,-557.42,0.00018356,2]
[333865582,1722579079641,-8928.74,0.00018356,2]
[333865583,1722579079650,-3974.3,0.00018356,2]
[333865584,1722579079659,-677.33,0.00018356,2]
[333865585,1722579079669,-1546.82,0.00018356,2]
[333865586,1722579079678,-1043.82,0.00018356,2]
[333865587,1722579079690,-545.96,0.00018356,2]
[333865588,1722579079699,-392.77903017,0.00018356,2]